fUSD/lending_fUSD_20250227
["ID","MTS","AMOUNT","RATE_DAILY","PERIOD"]
[354752220,1740665412041,-500.0,0.00054794,120]
[354752221,1740665412104,-500.0,0.00054794,120]
[354752222,1740665412159,-643.88,0.00054794,120]
[354752223,1740665412214,-500.0,0.00054794,120]
[354752224,1740665412267,-1561.48,0.00054794,120]
[354752225,1740665412322,-500.0,0.00054794,120]
[354752226,1740665412399,-500.0,0.00054794,120]
[354752227,1740665412461,-500.0,0.00054794,120]
[354752228,1740665412544,-276.17,0.00055068,120]
[354752229,1740665412596,-500.0,0.00055068,120]
[354752230,1740665412651,-701.74,0.00055068,120]
[354752231,1740665412706,-500.0,0.00055068,120]
[354752232,1740665412762,-643.88,0.00055068,120]
[354752233,1740665412817,-500.0,0.00055068,120]
[354752234,1740665412875,-1561.48,0.00055068,120]
[354752235,1740665412931,-500.0,0.00055068,120]
[354752236,1740665412987,-500.0,0.00055068,120]
[354752237,1740665413045,-500.0,0.00055342,120]
[354752238,1740665413105,-701.74,0.00055342,120]
[354752239,1740665413164,-500.0,0.00055342,120]
[354752240,1740665413225,-643.88,0.00055342,120]
[354752241,1740665413282,-500.0,0.00055342,120]
[354752242,1740665413341,-1561.48,0.00055342,120]
[354752243,1740665413405,-500.0,0.00055342,120]
[354752244,1740665413468,-500.0,0.00055616,120]
[354752245,1740665413561,-701.74,0.00055616,120]
[354752246,1740665413626,-500.0,0.00055616,120]
[354752247,1740665413687,-643.88,0.00055616,120]
[354752248,1740665413749,-500.0,0.00055616,120]
[354752249,1740665413811,-1561.48,0.00055616,120]
[354752250,1740665413871,-500.0,0.00055616,120]
[354752251,1740665413928,-500.0,0.0005589,120]
[354752252,1740665413991,-701.74,0.0005589,120]
[354752253,1740665414055,-500.0,0.0005589,120]
[354752254,1740665414121,-643.88,0.0005589,120]
[354752255,1740665414185,-174.70398618,0.0005589,120]
[354752256,1740665414257,-1561.48,0.0005589,120]
[354752257,1740665414325,-500.0,0.0005589,120]
[354752258,1740665414391,-500.0,0.00056164,120]
[354752259,1740665414452,-701.74,0.00056164,120]
[354752260,1740665414508,-500.0,0.00056164,120]
[354752261,1740665414563,-643.88,0.00056164,120]
[354752262,1740665414619,-1561.48,0.00056164,120]
[354752263,1740665414675,-500.0,0.00056164,120]
[354752264,1740665414736,-500.0,0.00056438,120]
[354752265,1740665414807,-701.74,0.00056438,120]
[354752266,1740665414863,-194.41,0.00056438,120]
[354752267,1740665414919,-643.88,0.00056438,120]
[354752268,1740665414973,-1561.48,0.00056438,120]
[354752269,1740665415030,-500.0,0.00056438,120]
[354752270,1740665415089,-500.0,0.00056712,120]
[354752271,1740665415145,-701.74,0.00056712,120]
[354752272,1740665415201,-643.88,0.00056712,120]
[354752273,1740665415262,-1561.48,0.00056712,120]
[354752274,1740665415317,-500.0,0.00056712,120]
[354752275,1740665415378,-545.41,0.00056986,120]
[354752276,1740665415436,-701.74,0.00056986,120]
[354752277,1740665415492,-643.88,0.00056986,120]
[354752278,1740665415550,-1561.48,0.00056986,120]
[354752279,1740665415606,-434.5,0.00056986,120]
[354752280,1740665415665,-701.74,0.0005726,120]
[354752281,1740665415723,-643.88,0.0005726,120]
[354752282,1740665415778,-1561.48,0.0005726,120]
[354752283,1740665415837,-701.74,0.00057534,120]
[354752284,1740665415894,-643.88,0.00057534,120]
[354752285,1740665415951,-1561.48,0.00057534,120]
[354752286,1740665416006,-701.74,0.00057808,120]
[354752287,1740665416069,-643.88,0.00057808,120]
[354752288,1740665416126,-1561.48,0.00057808,120]
[354752289,1740665416183,-701.74,0.00058082,120]
[354752290,1740665416241,-643.88,0.00058082,120]
[354752291,1740665416295,-1561.48,0.00058082,120]
[354752292,1740665416350,-701.74,0.00058356,120]
[354752293,1740665416407,-643.88,0.00058356,120]
[354752294,1740665416460,-1561.48,0.00058356,120]
[354752295,1740665416518,-701.74,0.0005863,120]
[354752296,1740665416573,-643.88,0.0005863,120]
[354752297,1740665416626,-1561.48,0.0005863,120]
[354752298,1740665416684,-701.74,0.00058904,120]
[354752299,1740665416741,-643.88,0.00058904,120]
[354752300,1740665416795,-1561.48,0.00058904,120]
[354752301,1740665416853,-701.74,0.00059178,120]
[354752302,1740665416912,-643.88,0.00059178,120]
[354752303,1740665416968,-1561.48,0.00059178,120]
[354752304,1740665417025,-701.74,0.00059452,120]
[354752305,1740665417082,-643.88,0.00059452,120]
[354752306,1740665417138,-1561.48,0.00059452,120]
[354752307,1740665417196,-701.74,0.00059726,120]
[354752308,1740665417259,-643.88,0.00059726,120]
[354752309,1740665417315,-1561.48,0.00059726,120]
[354752310,1740665417370,-701.74,0.00059999,120]
[354752311,1740665417426,-643.88,0.00059999,120]
[354752312,1740665417623,-1561.48,0.00059999,120]
[354752313,1740665417677,-752.0,0.0006,120]
[354752314,1740665417732,-1495.0,0.0006,117]
[354752315,1740665417793,-701.74,0.00060273,120]
[354752316,1740665417851,-643.88,0.00060273,120]
[354752317,1740665417913,-1561.48,0.00060273,120]
[354752318,1740665417972,-701.74,0.00060547,120]
[354752319,1740665418034,-643.88,0.00060547,120]
[354752320,1740665418091,-1561.48,0.00060547,120]
[354752321,1740665418150,-701.74,0.00060821,120]
[354752322,1740665418210,-643.88,0.00060821,120]
[354752323,1740665418277,-454433.10707373,0.00061,120]
[354752324,1740665418333,-5000.0,0.00061,120]
[354752325,1740665418389,-362.905968,0.00061,120]
[354752326,1740665418445,-362.905968,0.00061,120]
[354752327,1740665418503,-151.0,0.00061,120]
[354752328,1740665418562,-1000000.0,0.00061,120]
[354752329,1740665418621,-164.75089614,0.00061,40]
[354752330,1740665418678,-335.0,0.00061058,30]
[354752331,1740665418736,-1469.29411155,0.00061095,120]
[354752332,1740665418791,-2765.3,0.00061095,120]
[354752333,1740665418846,-766.10001587,0.00061095,120]
[354752334,1740665418902,-572.99121307,0.00061095,120]
[354752335,1740665418957,-1276.89470416,0.00061095,120]
[354752336,1740665419015,-589.61977328,0.00061095,120]
[354752337,1740665419073,-1675.85227499,0.00061095,120]
[354752338,1740665419128,-1754.50674901,0.00061095,120]
[354752339,1740665419184,-348.48613063,0.00061095,120]
[354752340,1740665419241,-1759.70811885,0.00061095,120]
[354752341,1740665419297,-3590.4772463,0.00061095,120]
[354752342,1740665419357,-723.10905856,0.00061095,120]
[354752343,1740665419412,-660.46435047,0.00061095,120]
[354752344,1740665419468,-701.92,0.00061095,120]
[354752345,1740665419527,-643.89,0.00061095,120]
[354752346,1740665419584,-3484913.50752369,0.000611,120]
[354752347,1740665419643,-151.0,0.000611,120]
[354752348,1740665419699,-152.273529,0.000611,120]
[354752349,1740665419755,-151.0,0.000611,120]
[354752350,1740665419813,-151.0,0.000611,120]
[354752351,1740665419868,-727.13857629,0.0006121,120]
[354752352,1740665419923,-156.61,0.00061267,120]
[354752353,1740665419978,-3343.33,0.00061334,120]
[354752354,1740665420033,-153.0,0.00061397,120]
[354752355,1740665420089,-153.0,0.00061397,120]
[354752356,1740665420148,-153.0,0.00061397,120]
[354752357,1740665420203,-151.0,0.00061507,120]
[354752358,1740665420261,-209.0,0.0006176,30]
[354752359,1740665420316,-206.0,0.0006176,30]
[354752360,1740665420370,-1126.0,0.0006182,120]
[354752361,1740665420423,-1126.0,0.0006182,120]
[354752362,1740665420480,-1126.0,0.0006182,120]
[354752363,1740665420536,-1126.0,0.00061898,120]
[354752364,1740665420589,-1126.0,0.00061898,120]
[354752365,1740665420643,-1126.0,0.00061898,120]
[354752366,1740665420693,-1126.0,0.00061898,120]
[354752367,1740665420744,-1126.0,0.00061898,120]
[354752368,1740665420796,-1126.0,0.00061898,120]
[354752369,1740665420845,-1126.0,0.00061898,120]
[354752370,1740665420897,-1126.0,0.00061898,120]
[354752371,1740665420949,-1126.0,0.00061898,120]
[354752372,1740665420998,-759.91879845,0.00061898,120]
[354752373,1740665421053,-100000.0,0.00062,62]
[354752374,1740665421108,-1000.0,0.00062,120]
[354752375,1740665421163,-828674.92393378,0.00062,120]
[354752381,1740665431794,-427.4631749,0.000148,2]
[354752382,1740665431804,-693.04,0.00014871,2]
[354752383,1740665431814,-500.0,0.00014877,2]
[354752384,1740665431824,-300.0,0.00014899,2]
[354752385,1740665431833,-500.0,0.000149,2]
[354752386,1740665431842,-265.95852353,0.000149,2]
[354752387,1740665431852,-190.24557972,0.000149,2]
[354752388,1740665431861,-1000.0,0.000149,2]
[354752389,1740665431870,-175.08927439,0.000149,2]
[354752390,1740665431880,-164.75089615,0.000149,2]
[354752391,1740665431889,-433.62502331,0.00014999,2]
[354752392,1740665431900,-554.0,0.00015,2]
[354752393,1740665431909,-63861.30594633,0.00015,2]
[354752394,1740665431920,-4042.37891776,0.00015,2]
[354752404,1740665437968,-284.4,0.00015,2]
[354752485,1740665439965,-588.1,0.00015,2]
[354752486,1740665440134,-2518.22829055,0.00015,2]
[354752487,1740665440146,-1401.6,0.00015,2]
[354752513,1740665446176,-16581.42828436,0.00015,2]
[354752524,1740665623661,-991.93343584,0.0003161,30]
[354752525,1740665623722,-500.0,0.0003161,30]
[354752526,1740665623789,-150.0,0.0005,120]
[354752527,1740665623850,-500.0,0.00054794,120]
[354752528,1740665623906,-192.97,0.00054794,120]
[354752529,1740665623965,-500.0,0.00054794,120]
[354752530,1740665624021,-500.0,0.00054794,120]
[354752531,1740665624077,-500.0,0.00054794,120]
[354752532,1740665624137,-164.21,0.00054794,120]
[354752533,1740665624193,-500.0,0.00054794,100]
[354752534,1740665624250,-585.52,0.00054794,120]
[354752535,1740665624304,-1212.64,0.00054794,120]
[354752536,1740665624361,-500.0,0.00054794,120]
[354752537,1740665624421,-500.0,0.00054794,120]
[354752538,1740665624477,-586.51,0.00054794,120]
[354752539,1740665624532,-500.0,0.00054794,120]
[354752540,1740665624587,-449.50101411,0.00054794,120]
[354752541,1740665624642,-500.0,0.00054794,120]
[354752542,1740665624696,-500.0,0.00054794,120]
[354752543,1740665624751,-500.0,0.00054794,120]
[354752544,1740665624806,-500.0,0.00054794,120]
[354752545,1740665624859,-500.0,0.00054794,120]
[354752546,1740665624916,-500.0,0.00054794,120]
[354752547,1740665624970,-500.0,0.00054794,120]
[354752548,1740665625023,-500.0,0.00054794,120]
[354752549,1740665625077,-500.0,0.00054794,120]
[354752550,1740665625134,-500.0,0.00054794,120]
[354752551,1740665625194,-500.0,0.00054794,120]
[354752552,1740665625250,-500.0,0.00054794,120]
[354752553,1740665625305,-500.0,0.00054794,120]
[354752554,1740665625361,-500.0,0.00054794,120]
[354752555,1740665625418,-500.0,0.00054794,120]
[354752556,1740665625471,-500.0,0.00054794,120]
[354752557,1740665625524,-500.0,0.00054794,120]
[354752558,1740665625580,-500.0,0.00054794,120]
[354752559,1740665625636,-500.0,0.00054794,120]
[354752560,1740665625688,-500.0,0.00054794,120]
[354752561,1740665625740,-500.0,0.00054794,120]
[354752562,1740665625792,-2000.0,0.00054794,120]
[354752563,1740665625842,-567.44,0.00054794,120]
[354752564,1740665625891,-500.0,0.00054794,120]
[354752565,1740665625946,-500.0,0.00054794,120]
[354752566,1740665625996,-500.0,0.00054794,120]
[354752567,1740665626047,-500.0,0.00054794,120]
[354752568,1740665626099,-500.0,0.00054794,120]
[354752569,1740665626154,-351.27219035,0.00054794,120]
[354752570,1740665626207,-500.0,0.00054794,120]
[354752571,1740665626259,-500.0,0.00054794,120]
[354752572,1740665626313,-500.0,0.00054794,120]
[354752573,1740665626368,-500.0,0.00054794,120]
[354752574,1740665626425,-500.0,0.00054794,120]
[354752575,1740665626477,-500.0,0.00054794,120]
[354752576,1740665626529,-500.0,0.00054794,120]
[354752577,1740665626582,-642.16,0.00054794,120]
[354752578,1740665626635,-500.0,0.00054794,120]
[354752579,1740665626686,-500.0,0.00054794,120]
[354752580,1740665626740,-500.0,0.00054794,120]
[354752581,1740665626791,-500.0,0.00054794,120]
[354752582,1740665626841,-500.0,0.00054794,120]
[354752583,1740665626892,-500.0,0.00054794,120]
[354752584,1740665626945,-500.0,0.00054794,120]
[354752585,1740665626998,-500.0,0.00054794,120]
[354752586,1740665627050,-548.92561711,0.00054794,120]
[354752587,1740665627105,-500.0,0.00054794,120]
[354752588,1740665627161,-500.0,0.00054794,120]
[354752589,1740665627216,-500.0,0.00054794,120]
[354752590,1740665627286,-500.0,0.00054794,120]
[354752591,1740665627339,-500.0,0.00054794,120]
[354752592,1740665627390,-500.0,0.00054794,120]
[354752593,1740665627475,-500.0,0.00054794,120]
[354752594,1740665627528,-500.0,0.00054794,120]
[354752595,1740665627580,-500.0,0.00054794,120]
[354752596,1740665627632,-500.0,0.00054794,120]
[354752597,1740665627683,-500.0,0.00054794,120]
[354752598,1740665627735,-193.22387121,0.00054794,120]
[354752599,1740665627787,-580.99,0.00054794,120]
[354752600,1740665627838,-500.0,0.00054794,120]
[354752601,1740665627890,-500.0,0.00054794,120]
[354752602,1740665627945,-500.0,0.00054794,120]
[354752603,1740665627995,-500.0,0.00054794,120]
[354752604,1740665628044,-500.0,0.00054794,120]
[354752605,1740665628098,-508.00907556,0.00054794,120]
[354752606,1740665628152,-500.0,0.00054794,120]
[354752607,1740665628207,-500.0,0.00054794,120]
[354752608,1740665628264,-500.0,0.00054794,120]
[354752609,1740665628324,-500.0,0.00054794,120]
[354752610,1740665628385,-500.0,0.00054794,120]
[354752611,1740665628441,-1000.0,0.00055,120]
[354752612,1740665628619,-559.37508283,0.00055068,120]
[354752613,1740665628671,-500.0,0.00055068,120]
[354752614,1740665628721,-500.0,0.00055068,100]
[354752615,1740665628771,-1212.64,0.00055068,120]
[354752616,1740665628819,-265.37525395,0.00055068,120]
[354752617,1740665628871,-500.0,0.00055068,120]
[354752618,1740665628921,-586.51,0.00055068,120]
[354752619,1740665628971,-500.0,0.00055068,120]
[354752620,1740665629023,-500.0,0.00055068,120]
[354752621,1740665629076,-500.0,0.00055068,120]
[354752622,1740665629132,-500.0,0.00055068,120]
[354752623,1740665629187,-500.0,0.00055068,120]
[354752624,1740665629238,-500.0,0.00055068,120]
[354752625,1740665629290,-500.0,0.00055068,120]
[354752626,1740665629345,-500.0,0.00055068,120]
[354752627,1740665629400,-500.0,0.00055068,120]
[354752628,1740665629451,-500.0,0.00055068,120]
[354752629,1740665629504,-500.0,0.00055068,120]
[354752630,1740665629555,-500.0,0.00055068,120]
[354752631,1740665629606,-488.87625075,0.00055068,120]
[354752632,1740665629658,-500.0,0.00055068,120]
[354752633,1740665629709,-2000.0,0.00055068,120]
[354752634,1740665629762,-500.0,0.00055068,120]
[354752635,1740665629812,-500.0,0.00055068,120]
[354752636,1740665629861,-500.0,0.00055068,120]
[354752637,1740665629909,-500.0,0.00055068,120]
[354752638,1740665629958,-500.0,0.00055068,120]
[354752639,1740665630008,-500.0,0.00055068,120]
[354752640,1740665630059,-500.0,0.00055068,120]
[354752641,1740665630107,-500.0,0.00055068,120]
[354752642,1740665630155,-500.0,0.00055342,120]
[354752643,1740665630206,-500.0,0.00055342,100]
[354752644,1740665630258,-1212.64,0.00055342,120]
[354752645,1740665630310,-500.0,0.00055342,120]
[354752646,1740665630361,-586.51,0.00055342,120]
[354752647,1740665630411,-500.0,0.00055342,120]
[354752648,1740665630463,-500.0,0.00055342,120]
[354752649,1740665630507,-500.0,0.00055342,120]
[354752650,1740665630551,-500.0,0.00055342,120]
[354752651,1740665630593,-500.0,0.00055342,120]
[354752652,1740665630634,-495.63,0.00055342,120]
[354752653,1740665630675,-500.0,0.00055342,120]
[354752654,1740665630717,-645.66,0.00055342,120]
[354752655,1740665630758,-500.0,0.00055342,120]
[354752656,1740665630801,-500.0,0.00055342,120]
[354752657,1740665630841,-500.0,0.00055342,120]
[354752658,1740665630881,-500.0,0.00055342,120]
[354752659,1740665630923,-215.5,0.00055342,120]
[354752660,1740665630962,-2000.0,0.00055342,120]
[354752661,1740665631004,-500.0,0.00055342,120]
[354752662,1740665631062,-500.0,0.00055342,120]
[354752663,1740665631111,-500.0,0.00055342,120]
[354752664,1740665631164,-491.96,0.00055342,120]
[354752665,1740665631215,-500.0,0.00055342,120]
[354752666,1740665631263,-500.0,0.00055342,120]
[354752667,1740665631316,-500.0,0.00055616,120]
[354752668,1740665631365,-500.0,0.00055616,100]
[354752669,1740665631420,-1212.64,0.00055616,120]
[354752670,1740665631476,-500.0,0.00055616,120]
[354752671,1740665631529,-586.51,0.00055616,120]
[354752672,1740665631581,-500.0,0.00055616,120]
[354752673,1740665631632,-500.0,0.00055616,120]
[354752674,1740665631680,-500.48467961,0.00055616,120]
[354752675,1740665631729,-569.99,0.00055616,120]
[354752676,1740665631778,-500.0,0.00055616,120]
[354752677,1740665631829,-500.0,0.00055616,120]
[354752678,1740665631877,-500.0,0.00055616,120]
[354752679,1740665631926,-500.0,0.00055616,120]
[354752680,1740665631974,-279.76,0.00055616,120]
[354752681,1740665632022,-500.0,0.00055616,120]
[354752682,1740665632071,-2000.0,0.00055616,120]
[354752683,1740665632122,-500.0,0.00055616,120]
[354752684,1740665632182,-500.0,0.00055616,120]
[354752685,1740665632235,-500.0,0.00055616,120]
[354752686,1740665632287,-500.0,0.00055616,120]
[354752687,1740665632336,-500.0,0.00055616,120]
[354752688,1740665632386,-500.0,0.0005589,120]
[354752689,1740665632434,-500.0,0.0005589,100]
[354752690,1740665632485,-1212.64,0.0005589,120]
[354752691,1740665632535,-500.0,0.0005589,120]
[354752692,1740665632584,-586.51,0.0005589,120]
[354752693,1740665632629,-500.0,0.0005589,120]
[354752694,1740665632673,-500.0,0.0005589,120]
[354752695,1740665632719,-500.0,0.0005589,120]
[354752696,1740665632765,-500.0,0.0005589,120]
[354752697,1740665632811,-500.0,0.0005589,120]
[354752698,1740665632855,-553.32,0.0005589,120]
[354752699,1740665632902,-500.0,0.0005589,120]
[354752700,1740665632945,-2000.0,0.0005589,120]
[354752701,1740665632988,-309.25,0.0005589,120]
[354752702,1740665633030,-177.37,0.0005589,120]
[354752703,1740665633074,-500.0,0.0005589,120]
[354752704,1740665633126,-500.0,0.0005589,120]
[354752705,1740665633175,-1000.0,0.00056,120]
[354752706,1740665633221,-500.0,0.00056164,120]
[354752707,1740665633432,-500.0,0.00056164,100]
[354752708,1740665633486,-1212.64,0.00056164,120]
[354752709,1740665633540,-500.0,0.00056164,120]
[354752710,1740665633594,-586.51,0.00056164,120]
[354752711,1740665633649,-529.04262041,0.00056164,120]
[354752712,1740665633700,-500.0,0.00056164,120]
[354752713,1740665633748,-500.0,0.00056164,120]
[354752714,1740665633798,-500.0,0.00056164,120]
[354752715,1740665633846,-500.0,0.00056164,120]
[354752716,1740665633893,-500.0,0.00056164,120]
[354752717,1740665633943,-2000.0,0.00056164,120]
[354752718,1740665633995,-500.0,0.00056164,120]
[354752719,1740665634045,-500.0,0.00056164,120]
[354752720,1740665634098,-1727.78000285,0.0005636,120]
[354752721,1740665634148,-1727.7800028,0.0005636,120]
[354752722,1740665634196,-1727.7800028,0.0005636,120]
[354752723,1740665634243,-1727.7800028,0.0005636,120]
[354752724,1740665634295,-1727.7800028,0.0005636,120]
[354752725,1740665634343,-1727.7800028,0.0005636,120]
[354752726,1740665634391,-1727.7800028,0.0005636,120]
[354752727,1740665634440,-1727.7800028,0.0005636,120]
[354752728,1740665634490,-1727.7800028,0.0005636,120]
[354752729,1740665634539,-1727.7800028,0.0005636,120]
[354752730,1740665634587,-1727.7800028,0.0005636,120]
[354752731,1740665634638,-1727.7800028,0.0005636,120]
[354752732,1740665634685,-1727.7800028,0.0005636,120]
[354752733,1740665634731,-1727.7800028,0.0005636,120]
[354752734,1740665634781,-1727.7800028,0.0005636,120]
[354752735,1740665634827,-1727.7800028,0.0005636,120]
[354752736,1740665634875,-1727.7800028,0.0005636,120]
[354752737,1740665634923,-1727.7800028,0.0005636,120]
[354752738,1740665634972,-500.0,0.00056438,120]
[354752739,1740665635020,-500.0,0.00056438,100]
[354752740,1740665635070,-1212.64,0.00056438,120]
[354752741,1740665635120,-500.0,0.00056438,120]
[354752742,1740665635172,-586.51,0.00056438,120]
[354752743,1740665635222,-351.52,0.00056438,120]
[354752744,1740665635275,-500.0,0.00056438,120]
[354752745,1740665635328,-500.0,0.00056438,120]
[354752746,1740665635378,-508.66,0.00056438,120]
[354752747,1740665635430,-500.0,0.00056438,120]
[354752748,1740665635483,-2000.0,0.00056438,120]
[354752749,1740665635532,-500.0,0.00056438,120]
[354752750,1740665635580,-475.17,0.00056438,120]
[354752751,1740665635627,-500.0,0.00056712,120]
[354752752,1740665635670,-461.68,0.00056712,100]
[354752753,1740665635716,-1212.64,0.00056712,120]
[354752754,1740665635766,-500.0,0.00056712,120]
[354752755,1740665635812,-586.51,0.00056712,120]
[354752756,1740665635860,-500.0,0.00056712,120]
[354752757,1740665635910,-500.0,0.00056712,120]
[354752758,1740665635960,-500.0,0.00056712,120]
[354752759,1740665636006,-2000.0,0.00056712,120]
[354752760,1740665636053,-500.0,0.00056712,120]
[354752761,1740665636106,-407.13,0.00056986,120]
[354752762,1740665636160,-1212.64,0.00056986,120]
[354752763,1740665636221,-500.0,0.00056986,120]
[354752764,1740665636281,-586.51,0.00056986,120]
[354752765,1740665636347,-500.0,0.00056986,120]
[354752766,1740665636398,-500.0,0.00056986,120]
[354752767,1740665636452,-500.0,0.00056986,120]
[354752768,1740665636504,-2000.0,0.00056986,120]
[354752769,1740665636553,-500.0,0.00056986,120]
[354752770,1740665636602,-1000.0,0.00057,120]
[354752771,1740665636647,-232.0,0.000572,30]
[354752772,1740665636693,-1212.64,0.0005726,120]
[354752773,1740665636742,-500.0,0.0005726,120]
[354752774,1740665636788,-586.51,0.0005726,120]
[354752775,1740665636834,-500.0,0.0005726,120]
[354752776,1740665636882,-500.4790006,0.0005726,120]
[354752777,1740665636928,-500.0,0.0005726,120]
[354752778,1740665636975,-2000.0,0.0005726,120]
[354752779,1740665637021,-500.0,0.0005726,120]
[354752780,1740665637069,-1212.64,0.00057534,120]
[354752781,1740665637119,-500.0,0.00057534,120]
[354752782,1740665637169,-586.51,0.00057534,120]
[354752783,1740665637223,-530.26,0.00057534,120]
[354752784,1740665637274,-278.5,0.00057534,120]
[354752785,1740665637327,-1060.00687769,0.00057534,120]
[354752786,1740665637374,-492.97,0.00057534,120]
[354752787,1740665637424,-1212.64,0.00057808,120]
[354752788,1740665637472,-579.89158251,0.00057808,120]
[354752789,1740665637519,-586.51,0.00057808,120]
[354752790,1740665637567,-1000.0,0.00058,120]
[354752791,1740665637615,-1212.64,0.00058082,120]
[354752792,1740665637665,-586.51,0.00058082,120]
[354752793,1740665637716,-1212.64,0.00058356,120]
[354752794,1740665637770,-586.51,0.00058356,120]
[354752795,1740665637824,-1727.7800028,0.00058479,120]
[354752796,1740665637890,-1212.64,0.0005863,120]
[354752797,1740665637946,-586.51,0.0005863,120]
[354752798,1740665638001,-1212.64,0.00058904,120]
[354752799,1740665638054,-586.51,0.00058904,120]
[354752800,1740665638110,-1000.0,0.00059,120]
[354752801,1740665638305,-1212.64,0.00059178,120]
[354752802,1740665638358,-586.51,0.00059178,120]
[354752803,1740665638414,-1212.64,0.00059452,120]
[354752804,1740665638465,-586.51,0.00059452,120]
[354752805,1740665638517,-1212.64,0.00059726,120]
[354752806,1740665638568,-586.51,0.00059726,120]
[354752807,1740665638620,-1212.64,0.00059999,120]
[354752808,1740665638667,-586.51,0.00059999,120]
[354752809,1740665638717,-532282.2285,0.0006,120]
[354752810,1740665638767,-1000.0,0.0006,120]
[354752811,1740665638817,-1000000.0,0.0006,120]
[354752812,1740665638865,-1212.64,0.00060273,120]
[354752813,1740665638914,-586.51,0.00060273,120]
[354752814,1740665638963,-1212.64,0.00060547,120]
[354752815,1740665639014,-586.51,0.00060547,120]
[354752816,1740665639064,-1561.48,0.00060821,120]
[354752817,1740665639116,-1212.64,0.00060821,120]
[354752818,1740665639168,-586.51,0.00060821,120]
[354752819,1740665639219,-1727.7800028,0.000609,120]
[354752820,1740665639267,-823.0,0.00061,120]
[354752821,1740665639319,-1561.6705439,0.00061095,120]
[354752822,1740665639371,-1212.71,0.00061095,120]
[354752823,1740665639425,-586.54084922,0.00061095,120]
[354752824,1740665639480,-161.64144205,0.00061486,30]
[354752825,1740665639538,-171325.07606622,0.00062,120]
[354752826,1740665639596,-624810.0,0.00062,120]
[354752827,1740665639650,-151.0,0.00062274,120]
[354752828,1740665639702,-964.149,0.0006235,120]
[354752829,1740665639753,-1000000.0,0.000625,120]
[354752830,1740665639803,-500.0,0.00062764,120]
[354752831,1740665639851,-1126.0,0.0006282,120]
[354752832,1740665639902,-1126.0,0.0006282,120]
[354752833,1740665639951,-434.2,0.00062877,30]
[354752834,1740665639999,-2244.04016,0.0006288,113]
[354752835,1740665640049,-1126.0,0.00062898,120]
[354752836,1740665640103,-1126.0,0.00062898,120]
[354752837,1740665640157,-1126.0,0.00062898,120]
[354752838,1740665640215,-1126.0,0.00062898,120]
[354752839,1740665640270,-1000.0,0.00063,120]
[354752840,1740665640330,-151.0,0.00063,120]
[354752841,1740665640387,-500.0,0.00063014,120]
[354752842,1740665640447,-500.0,0.00063014,120]
[354752843,1740665640499,-150.0,0.00063014,120]
[354752844,1740665640552,-1088.0,0.00063014,120]
[354752845,1740665640604,-500.0,0.00063014,120]
[354752846,1740665640656,-150.0,0.00063014,120]
[354752847,1740665640706,-255.97872863,0.00063014,62]
[354752848,1740665640758,-154.51,0.000631,63]